bitfinex-derivatives/quotes_BTCF0:USTF0_20251110
["timestamp","ask_amount","ask_price","bid_price","bid_amount"]
[1762753861249,0.36514529,106120.0,106110.0,0.4995011]
[1762753862257,0.36514529,106120.0,106110.0,0.1387011]
[1762753862756,0.36514529,106120.0,106110.0,0.4995011]
[1762753862947,0.20046807,106120.0,106110.0,0.4995011]
[1762753865454,0.11623305,106120.0,106110.0,0.58278612]
[1762753866055,0.13004305,106120.0,106110.0,0.58278612]
[1762753866754,0.13004305,106120.0,106110.0,0.56992612]
[1762753866755,0.29472027,106120.0,106110.0,0.56992612]
[1762753866956,0.20046807,106120.0,106110.0,0.56992612]
[1762753867159,0.20046807,106120.0,106110.0,0.58278612]
[1762753867362,0.04580803,106120.0,106110.0,0.58278612]
[1762753867652,0.04580803,106120.0,106110.0,0.65321114]
[1762753867854,0.12798643,106130.0,106120.0,0.1386922]
[1762753868058,0.11637446,106130.0,106120.0,0.8315722]
[1762753868254,0.11637446,106130.0,106120.0,0.90199722]
[1762753868454,0.00233944,106130.0,106120.0,0.97242224]
[1762753868658,0.09518446,106130.0,106120.0,0.90199722]
[1762753869061,0.00233944,106130.0,106120.0,0.97242224]
[1762753869454,0.00233944,106130.0,106120.0,0.90199722]
[1762753869661,0.00233944,106130.0,106120.0,0.97342224]
[1762753869855,0.02475944,106130.0,106120.0,0.97342224]
[1762753870059,0.00433944,106130.0,106120.0,0.97342224]
[1762753870259,0.09718446,106130.0,106120.0,0.97342224]
[1762753870763,0.02475944,106130.0,106120.0,0.97542224]
[1762753871655,0.02256141,106130.0,106120.0,0.97542224]
[1762753871860,0.00014141,106130.0,106120.0,1.07542224]
[1762753873058,0.22208552,106140.0,106130.0,0.1386833]
[1762753873257,0.22428355,106140.0,106130.0,0.56990832]
[1762753873566,0.22427745,106140.0,106130.0,0.56990832]
[1762753874065,0.22427745,106140.0,106130.0,0.4994833]
[1762753874662,0.36512749,106140.0,106130.0,0.1386833]
[1762753874961,0.36512749,106140.0,106130.0,0.04444]
[1762753875156,0.7485107,106140.0,106130.0,0.04444]
[1762753875361,0.7485107,106140.0,106120.0,0.82467361]
[1762753875362,0.1516633,106130.0,106120.0,0.82467361]
[1762753875554,0.36513639,106130.0,106120.0,0.73042141]
[1762753875761,0.36513639,106130.0,106120.0,0.02288141]
[1762753875960,0.38772637,106130.0,106120.0,0.02288141]
[1762753876172,0.74852637,106130.0,106120.0,0.00014141]
[1762753876953,1.05192467,106130.0,106120.0,0.00014141]
[1762753877966,1.05392467,106130.0,106120.0,0.00014141]
[1762753878557,0.96010799,106130.0,106120.0,0.02288141]
[1762753878758,0.59930799,106130.0,106120.0,0.00014141]
[1762753878957,0.96010799,106130.0,106120.0,0.00014141]
[1762753879861,1.01076321,106130.0,106120.0,0.00014141]
[1762753881372,0.91694653,106130.0,106120.0,0.13805361]
[1762753881571,1.01076321,106130.0,106120.0,0.13805361]
[1762753881774,1.01076321,106130.0,106120.0,0.00014141]
[1762753881968,0.55571991,106130.0,106120.0,0.13805361]
[1762753882175,0.59930799,106130.0,106120.0,0.13805361]
[1762753882364,0.50506469,106130.0,106120.0,0.49885361]
[1762753882674,0.50479782,106130.0,106120.0,0.49885361]
[1762753883066,0.17975782,106130.0,106120.0,0.49885361]
[1762753883870,0.27400122,106130.0,106120.0,0.49885361]
[1762753885575,0.17975782,106130.0,106120.0,0.49885361]
[1762753887070,0.27400122,106130.0,106120.0,0.49885361]
[1762753888075,0.27400122,106130.0,106120.0,0.40460141]
[1762753888377,0.63480122,106130.0,106120.0,0.00014141]
[1762753888675,0.7286179,106130.0,106120.0,0.00014141]
[1762753888876,0.77927312,106130.0,106120.0,0.00014141]
[1762753889777,0.77927312,106130.0,106100.0,1.04602237]
[1762753889778,0.1502611,106110.0,106100.0,1.04602237]
[1762753889975,0.26859892,106110.0,106100.0,1.04602237]
[1762753890171,0.26859892,106110.0,106100.0,0.72094237]
[1762753890975,0.26859892,106110.0,106100.0,0.72194237]
[1762753891377,0.26859892,106110.0,106100.0,0.72394237]
[1762753891584,0.17433782,106110.0,106100.0,0.72394237]
[1762753891883,0.26859892,106110.0,106100.0,0.72394237]
[1762753893084,0.17478224,106110.0,106100.0,0.57654237]
[1762753893382,0.17433782,106110.0,106100.0,0.57654237]
[1762753893979,0.08052114,106110.0,106100.0,0.57654237]
[1762753894180,0.17433782,106110.0,106100.0,0.57654237]
[1762753895278,0.08052114,106110.0,106100.0,0.67741905]
[1762753895874,0.06734114,106110.0,106100.0,0.67741905]
[1762753897374,0.04501803,106110.0,106100.0,0.67741905]
[1762753898170,0.16147589,106110.0,106100.0,0.67741905]
[1762753899082,0.17465589,106110.0,106100.0,0.57654237]
[1762753899285,0.26847257,106110.0,106100.0,0.57654237]
[1762753900882,0.08039479,106110.0,106100.0,0.57654237]
[1762753901084,0.06721479,106110.0,106100.0,0.58360237]
[1762753902184,0.16147589,106110.0,106100.0,0.58360237]
[1762753903281,0.26847257,106110.0,106100.0,0.48227237]
[1762753903688,0.26847257,106110.0,106100.0,0.57654237]
[1762753908283,0.72308925,106110.0,106100.0,0.003]
[1762753908689,0.15107,106100.0,106090.0,1e-08]
[1762753908887,0.95524147,106100.0,106090.0,1e-08]
[1762753909180,0.1505578,106080.0,106070.0,0.48179085]
[1762753909390,0.1506367,106070.0,106060.0,0.4988053]
[1762753909592,0.24665141,106070.0,106060.0,0.4988055]
[1762753909775,0.24665141,106070.0,106060.0,0.4045]
[1762753909980,0.24665141,106070.0,106060.0,0.4988055]
[1762753910177,0.15235471,106070.0,106060.0,0.4988055]
[1762753910381,0.24665141,106070.0,106060.0,0.4988055]
[1762753910576,0.24765141,106070.0,106060.0,0.5088055]
[1762753910790,0.24765141,106070.0,106060.0,0.5158055]
[1762753910791,0.24865141,106070.0,106060.0,0.5158055]
[1762753910990,0.33929752,106070.0,106060.0,0.5158055]
[1762753911582,0.24500082,106070.0,106060.0,0.5158055]
[1762753912484,0.04719803,106070.0,106060.0,0.5228655]
[1762753912685,0.15483463,106070.0,106060.0,0.5228655]
[1762753912990,0.15483463,106070.0,106060.0,0.5158055]
[1762753913485,0.06053803,106070.0,106060.0,0.5158055]
[1762753913699,0.06030239,106070.0,106060.0,0.5158055]
[1762753916998,0.04696239,106070.0,106060.0,0.5231055]
[1762753917288,0.15459899,106070.0,106060.0,0.5158055]
[1762753918096,0.06030239,106070.0,106060.0,0.5158055]
[1762753918595,0.04696239,106070.0,106060.0,0.5231055]
[1762753920690,0.02550239,106070.0,106060.0,0.5231055]
[1762753921701,0.00419803,106070.0,106060.0,0.70756829]
[1762753922197,0.002,106070.0,106060.0,0.70756829]
[1762753922899,0.00419803,106070.0,106060.0,0.70756829]
[1762753923298,0.002,106070.0,106060.0,0.80756829]
[1762753924492,0.09849463,106070.0,106060.0,0.70756829]
[1762753924791,0.15483463,106070.0,106060.0,0.5231055]
[1762753925494,0.14149463,106070.0,106060.0,0.5231055]
[1762753925904,0.00419803,106070.0,106060.0,0.5231055]
[1762753926201,0.02573803,106070.0,106060.0,0.5231055]
[1762753926896,0.00419803,106070.0,106060.0,0.5231055]
[1762753927199,0.00419803,106070.0,106060.0,0.70756829]
[1762753928707,0.002,106070.0,106060.0,0.80756829]
[1762753928899,0.00014141,106080.0,106070.0,0.1478667]
[1762753929099,0.1510401,106100.0,106090.0,0.1508389]
[1762753929399,0.00219803,106100.0,106090.0,0.8370389]
[1762753929601,0.00219803,106100.0,106090.0,1.02150169]
[1762753929998,0.11800803,106100.0,106090.0,0.8370389]
[1762753930199,0.15280803,106100.0,106090.0,0.8370389]
[1762753930505,0.02373803,106100.0,106090.0,0.8400389]
[1762753930704,0.00219803,106100.0,106090.0,0.8400389]
[1762753930999,0.00219803,106100.0,106090.0,0.8440389]
[1762753931198,0.02373803,106100.0,106090.0,0.8440389]
[1762753931397,0.02373803,106100.0,106090.0,0.92080404]
[1762753931606,0.02373803,106100.0,106090.0,0.91680404]
[1762753931806,0.02373803,106100.0,106090.0,0.91880404]
[1762753932006,0.02373803,106100.0,106090.0,0.8390389]
[1762753932304,0.13946793,106100.0,106090.0,0.8400389]
[1762753932495,0.15280793,106100.0,106090.0,0.8400389]
[1762753934105,0.15280793,106100.0,106090.0,0.8271789]
[1762753934305,0.05853803,106100.0,106090.0,0.8271789]
[1762753934513,0.15280793,106100.0,106090.0,0.4663789]
[1762753934804,0.17521708,106100.0,106090.0,0.3721]
[1762753935206,0.17521708,106100.0,106090.0,0.4484956]
[1762753935795,0.35967987,106100.0,106090.0,0.5427744]
[1762753935993,0.17521708,106100.0,106090.0,0.4484956]
[1762753936197,0.35967987,106100.0,106090.0,0.4484956]
[1762753936397,0.17521708,106100.0,106090.0,0.4484956]
[1762753936909,0.30718694,106100.0,106090.0,0.5427744]
[1762753937105,0.30718694,106100.0,106090.0,0.9035744]
[1762753937402,0.17521708,106100.0,106090.0,0.9035744]
[1762753938106,0.30718694,106100.0,106090.0,0.9035744]
[1762753938709,0.30718694,106100.0,106090.0,0.8092956]
[1762753940406,0.30718694,106100.0,106090.0,0.9035744]
[1762753942810,0.17521708,106100.0,106090.0,0.9035744]
[1762753943212,0.17521708,106100.0,106090.0,0.8092956]
[1762753944309,0.17521708,106100.0,106090.0,0.4484956]
[1762753944610,0.17521708,106100.0,106090.0,0.02468]
[1762753944611,0.99310694,106100.0,106090.0,0.02468]
[1762753944909,0.99310694,106100.0,106090.0,0.003]
[1762753945116,0.1523788,106090.0,106080.0,0.00014141]
[1762753945416,0.66975584,106090.0,106080.0,0.00014141]
[1762753946506,0.67075584,106090.0,106080.0,0.00014141]
[1762753947206,0.67275584,106090.0,106080.0,0.00014141]
[1762753947802,0.67475584,106090.0,106080.0,0.00014141]
[1762753949912,0.67475584,106090.0,106080.0,0.04423141]
[1762753950117,0.31395584,106090.0,106080.0,0.04423141]
[1762753950314,0.67475584,106090.0,106080.0,0.04423141]
[1762753950617,0.63915584,106090.0,106080.0,0.04423141]
[1762753952610,0.63915584,106090.0,106080.0,0.02193141]
[1762753952811,0.7184158,106090.0,106080.0,0.02193141]
[1762753953119,1.0792158,106090.0,106080.0,0.02193141]
[1762753953420,1.0792158,106090.0,106080.0,0.00014141]
[1762753953619,1.0792158,106090.0,106080.0,0.04423141]
[1762753953819,0.7184158,106090.0,106080.0,0.04423141]
[1762753954526,1.0792158,106090.0,106080.0,0.04423141]
[1762753954817,0.7184158,106090.0,106080.0,0.04423141]
[1762753955806,0.64800586,106090.0,106080.0,0.04423141]
[1762753956010,0.64800586,106090.0,106080.0,0.40503141]
[1762753956416,0.64800586,106090.0,106080.0,0.04423141]
[1762753956818,1.0792158,106090.0,106080.0,0.04423141]
[1762753957320,0.7184158,106090.0,106080.0,0.04423141]
[1762753957617,1.0792158,106090.0,106080.0,0.04423141]
[1762753957817,0.86798598,106090.0,106080.0,0.04423141]
[1762753958018,0.7184158,106090.0,106080.0,0.04423141]
[1762753958914,1.0792158,106090.0,106080.0,0.02193141]
[1762753959312,0.7184158,106090.0,106080.0,0.04423141]
[1762753961314,0.7184158,106090.0,106080.0,0.13851921]
[1762753961919,0.7184158,106090.0,106080.0,0.04423141]
[1762753962315,0.64800586,106090.0,106080.0,0.04423141]
[1762753963413,0.64800586,106090.0,106080.0,0.49931921]
[1762753963923,0.32280586,106090.0,106080.0,0.49931921]
[1762753964222,0.64796586,106090.0,106080.0,0.49931921]
[1762753964525,0.64796586,106090.0,106080.0,0.40503141]
[1762753964724,0.7183758,106090.0,106080.0,0.04423141]
[1762753964916,1.0791758,106090.0,106080.0,0.04423141]
[1762753965625,1.0791758,106090.0,106080.0,0.02193141]
[1762753966830,1.0791758,106090.0,106080.0,0.04423141]
[1762753967723,0.55368706,106090.0,106080.0,0.49931921]
[1762753967913,0.64796596,106090.0,106080.0,0.49931921]
[1762753968430,0.55368706,106090.0,106080.0,0.49931921]
[1762753968934,0.22852706,106090.0,106080.0,0.49931921]
[1762753969228,0.55368706,106090.0,106080.0,0.49931921]
[1762753969424,0.48327712,106090.0,106080.0,0.49931921]
[1762753969626,0.55368706,106090.0,106080.0,0.49931921]
[1762753970130,0.22852706,106090.0,106080.0,0.49931921]
[1762753970334,0.55368706,106090.0,106080.0,0.49931921]
[1762753970523,0.55168706,106090.0,106080.0,0.49931921]
[1762753970827,0.22652706,106090.0,106080.0,0.49931921]
[1762753971030,0.64396596,106090.0,106080.0,0.49931921]
[1762753971228,0.64596596,106090.0,106080.0,0.49931921]
[1762753971429,0.55168706,106090.0,106080.0,0.49931921]
[1762753971728,0.55068706,106090.0,106080.0,0.49931921]
[1762753971930,0.55368706,106090.0,106080.0,0.49931921]
[1762753972230,0.64796596,106090.0,106080.0,0.49931921]
[1762753973420,0.55368706,106090.0,106080.0,0.49931921]
[1762753973625,0.64796596,106090.0,106080.0,0.49931921]
[1762753974030,0.64796596,106090.0,106080.0,0.13851921]
[1762753975326,0.55368706,106090.0,106080.0,0.49931921]
[1762753977835,0.64796606,106090.0,106080.0,0.49931921]
[1762753978437,0.50714618,106090.0,106080.0,0.49931921]
[1762753978637,0.64796606,106090.0,106080.0,0.49931921]
[1762753979233,0.55368706,106090.0,106080.0,0.49931921]
[1762753979440,0.55368706,106090.0,106080.0,0.64527909]
[1762753979441,0.07505718,106090.0,106080.0,0.64527909]
[1762753979737,0.07505718,106090.0,106080.0,1.00002915]
[1762753979932,0.02740915,106090.0,106080.0,0.92961921]
[1762753980130,0.02740915,106090.0,106080.0,1.07043909]
[1762753980331,0.05227718,106090.0,106080.0,1.07043909]
[1762753980526,0.002,106090.0,106080.0,1.07043909]
[1762753980732,0.02367,106090.0,106080.0,1.07043909]
[1762753981038,0.04631,106090.0,106080.0,0.97043909]
[1762753981250,0.04750803,106090.0,106080.0,0.97043909]
[1762753981443,0.17802054,106100.0,106090.0,0.0942789]
[1762753981743,0.14042529,106100.0,106090.0,0.65091878]
[1762753982136,0.14042529,106100.0,106090.0,0.58050884]
[1762753983042,0.11791797,106100.0,106090.0,0.58050884]
[1762753983635,0.21218797,106100.0,106090.0,0.58050884]
[1762753984033,0.22553797,106100.0,106090.0,0.58050884]
[1762753984237,0.13126797,106100.0,106090.0,0.65525285]
[1762753984437,0.13226797,106100.0,106090.0,0.65525285]
[1762753984632,0.13226797,106100.0,106090.0,0.72566279]
[1762753985340,0.001,106100.0,106090.0,0.79607273]
[1762753985551,0.001,106100.0,106090.0,0.89607273]
[1762753986443,0.001,106100.0,106090.0,1.13171273]
[1762753986647,0.001,106100.0,106090.0,1.13471273]
[1762753986844,0.22347285,106110.0,106100.0,0.13643]
[1762753987153,0.29608082,106110.0,106100.0,0.49723]
[1762753987346,0.15293,106100.0,106090.0,0.12290401]
[1762753987642,0.1529389,106090.0,106080.0,0.00014141]
[1762753987840,0.1529389,106090.0,106080.0,0.09442921]
[1762753987841,0.7139556,106090.0,106080.0,0.09442921]
[1762753988043,0.7139556,106090.0,106080.0,0.00014141]
[1762753988241,0.7139556,106090.0,106080.0,0.02119141]
[1762753988641,0.54926676,106090.0,106080.0,0.13658921]
[1762753988841,0.64354566,106090.0,106080.0,0.49738921]
[1762753989151,0.22614676,106090.0,106080.0,0.49738921]
[1762753989452,0.32042566,106090.0,106080.0,0.49738921]
[1762753990248,0.32042566,106090.0,106080.0,0.13658921]
[1762753990447,0.32342566,106090.0,106080.0,0.49738921]
[1762753991144,0.22914676,106090.0,106080.0,0.49738921]
[1762753991347,0.32342566,106090.0,106080.0,0.49738921]
[1762753991542,0.32342566,106090.0,106080.0,0.13658921]
[1762753991941,0.32342566,106090.0,106080.0,0.49738921]
[1762753992143,0.22914676,106090.0,106080.0,0.49738921]
[1762753993348,0.15873682,106090.0,106080.0,0.49738921]
[1762753994150,0.15873682,106090.0,106080.0,0.56779915]
[1762753994350,0.02966688,106090.0,106080.0,1.27928903]
[1762753994652,0.05250803,106090.0,106080.0,0.83237921]
[1762753994953,0.06585803,106090.0,106080.0,0.97319909]
[1762753995746,0.05250803,106090.0,106080.0,1.07319909]
[1762753995946,0.00719803,106090.0,106080.0,1.07319909]
[1762753996349,0.05250803,106090.0,106080.0,0.97319909]
[1762753997157,0.05050803,106090.0,106080.0,0.97319909]
[1762753997352,0.04750803,106090.0,106080.0,1.07419909]
[1762753997953,0.04950803,106090.0,106080.0,0.97319909]
[1762753998149,0.14478693,106090.0,106080.0,0.97319909]
[1762753998855,0.14478693,106090.0,106080.0,0.92622257]
[1762753999155,0.05050803,106090.0,106080.0,0.92622257]
[1762754000146,0.02786803,106090.0,106080.0,0.92622257]
[1762754000347,0.00519803,106090.0,106080.0,0.92622257]
[1762754001557,0.02704803,106090.0,106080.0,0.92622257]
[1762754001759,0.02604803,106090.0,106080.0,0.92722257]
[1762754002059,0.00419803,106090.0,106080.0,1.02722257]
[1762754002357,0.002,106090.0,106080.0,1.02722257]
[1762754002557,0.24608366,106100.0,106090.0,0.1386189]
[1762754002756,0.27076245,106100.0,106090.0,0.4994189]
[1762754002952,0.17649215,106100.0,106090.0,0.4994189]
[1762754003160,0.06935879,106100.0,106090.0,0.60612226]
[1762754003354,0.02467879,106100.0,106090.0,0.60612226]
[1762754003653,0.02199141,106110.0,106100.0,0.14375]
[1762754003861,0.14128054,106110.0,106100.0,0.92351336]
[1762754004166,0.04701944,106110.0,106100.0,0.92351336]
[1762754004750,0.14128054,106110.0,106100.0,0.92351336]
[1762754004950,0.04701944,106110.0,106100.0,0.92351336]
[1762754005458,0.06030944,106110.0,106100.0,0.92351336]
[1762754005655,0.15457064,106110.0,106100.0,0.92351336]
[1762754005861,0.248414,106110.0,106100.0,0.49941]
[1762754006061,0.1541528,106110.0,106100.0,0.83275]
[1762754006260,0.06030944,106110.0,106100.0,0.83275]
[1762754006447,0.02718944,106110.0,106100.0,0.92659336]
[1762754006651,0.14428064,106110.0,106100.0,0.92659336]
[1762754006849,0.251414,106110.0,106100.0,0.40514]
[1762754007058,0.27412339,106110.0,106100.0,0.38248]
[1762754007258,0.27412339,106110.0,106100.0,0.40514]
[1762754008061,0.27412339,106110.0,106100.0,0.4994101]
[1762754009057,0.27412339,106110.0,106100.0,0.40514]
[1762754009264,0.27412339,106110.0,106100.0,0.49941]
[1762754009462,0.18028003,106110.0,106100.0,0.49941]
[1762754009661,0.27412339,106110.0,106100.0,0.49941]
[1762754010057,0.63492339,106110.0,106100.0,0.04434]
[1762754010363,0.27412339,106110.0,106100.0,0.04434]
[1762754011154,0.09427,106100.0,106090.0,0.52887936]
[1762754011363,0.24828139,106100.0,106090.0,0.89838096]
[1762754011558,0.27124478,106100.0,106090.0,0.47894206]
[1762754011763,0.27124404,106100.0,106090.0,0.80410206]
[1762754011966,0.27124404,106100.0,106090.0,0.89838096]
[1762754012368,0.27124404,106100.0,106090.0,0.40514]
[1762754012565,0.27124404,106100.0,106090.0,0.73034]
[1762754013067,0.27124404,106100.0,106090.0,0.7313]
[1762754013268,0.08313068,106100.0,106090.0,0.8255789]
[1762754013468,0.17697404,106100.0,106090.0,0.8255789]
[1762754013670,0.17997404,106100.0,106090.0,0.8245789]
[1762754013870,0.18040068,106100.0,106090.0,0.7303]
[1762754014366,0.27424404,106100.0,106090.0,0.7303]
[1762754014666,0.27424404,106100.0,106090.0,0.40514]
[1762754014863,0.27424404,106100.0,106090.0,0.4994189]
[1762754017761,0.27424404,106100.0,106090.0,0.04434]
[1762754018067,0.27424404,106100.0,106090.0,0.11796786]
[1762754018264,0.27424404,106100.0,106090.0,0.47876786]
[1762754018860,0.27424404,106100.0,106090.0,0.57304676]
[1762754019165,0.27424404,106100.0,106090.0,0.47876786]
[1762754019366,0.18040068,106100.0,106090.0,0.57304676]
[1762754019567,0.27424404,106100.0,106090.0,0.57304676]
[1762754019968,0.27424404,106100.0,106090.0,0.47876786]
[1762754020171,0.63504404,106100.0,106090.0,0.11796786]
[1762754021165,0.27424404,106100.0,106090.0,0.47876786]
[1762754021564,0.27426038,106100.0,106090.0,0.47876786]
[1762754022371,0.63506038,106100.0,106090.0,0.11796786]
[1762754023073,0.72890374,106100.0,106090.0,0.09530786]
[1762754023372,0.1522489,106090.0,106080.0,0.82468921]
[1762754023560,0.27126928,106090.0,106080.0,0.82468921]
[1762754024874,0.08314702,106090.0,106080.0,0.82468921]
[1762754025169,0.27126928,106090.0,106080.0,0.82468921]
[1762754025363,0.27126928,106090.0,106080.0,0.82568921]
[1762754026066,0.17699038,106090.0,106080.0,0.82568921]
[1762754026275,0.06985702,106090.0,106080.0,0.92940257]
[1762754026571,0.06985702,106090.0,106080.0,0.83555921]
[1762754026961,0.16413582,106090.0,106080.0,0.83555921]
[1762754027369,0.06985702,106090.0,106080.0,0.83555921]
[1762754028063,0.06985702,106090.0,106080.0,0.92940257]
[1762754028375,0.02517702,106090.0,106080.0,1.02940257]
[1762754028878,0.00219803,106090.0,106080.0,1.02940257]
[1762754029275,0.00219803,106090.0,106080.0,0.92940257]
[1762754029876,0.09647693,106090.0,106080.0,0.92940257]
[1762754030370,0.02339803,106090.0,106080.0,0.92940257]
[1762754030569,0.13932693,106090.0,106080.0,0.92940257]
[1762754032777,0.04504803,106090.0,106080.0,0.92940257]
[1762754034379,0.13932683,106090.0,106080.0,0.92940257]
[1762754036377,0.24655019,106090.0,106080.0,0.40628141]
[1762754036573,0.2695459,106090.0,106080.0,0.73140141]
[1762754038886,0.2695459,106090.0,106080.0,0.82568921]
[1762754042093,0.1752671,106090.0,106080.0,0.82568921]
[1762754042584,0.08142374,106090.0,106080.0,0.83555921]
[1762754042889,0.02519374,106090.0,106080.0,0.92940257]
[1762754043088,0.04662374,106090.0,106080.0,0.92940257]
[1762754043389,0.06827374,106090.0,106080.0,0.92940257]
[1762754044282,0.16255264,106090.0,106080.0,0.92940257]
[1762754045888,0.17593264,106090.0,106080.0,0.83555921]
[1762754046079,0.269776,106090.0,106080.0,0.74127141]
[1762754046378,0.17593264,106090.0,106080.0,0.74127141]
[1762754046584,0.17593264,106090.0,106080.0,0.83555921]
[1762754047888,0.08165374,106090.0,106080.0,0.82568921]
[1762754048080,0.17593264,106090.0,106080.0,0.82568921]
[1762754048491,0.17593264,106090.0,106080.0,0.83555921]
[1762754051792,0.06827374,106090.0,106080.0,0.83555921]
[1762754051999,0.06827374,106090.0,106080.0,0.92940257]
[1762754052388,0.16255274,106090.0,106080.0,0.92940257]
[1762754052993,0.2697761,106090.0,106080.0,0.74127141]
[1762754053189,0.2697761,106090.0,106080.0,0.83555911]
[1762754053589,0.17593274,106090.0,106080.0,0.83555911]
[1762754053889,0.08165374,106090.0,106080.0,0.83555911]
[1762754054198,0.08165374,106090.0,106080.0,0.92940247]
[1762754054199,0.06827374,106090.0,106080.0,0.92940247]
[1762754054388,0.06827374,106090.0,106080.0,0.83555911]
[1762754055398,0.16255254,106090.0,106080.0,0.83555911]
[1762754056592,0.17593254,106090.0,106080.0,0.83555911]
[1762754056896,0.2697759,106090.0,106080.0,0.83555911]
[1762754057496,0.1754971,106090.0,106080.0,0.83555911]
[1762754057994,0.06827374,106090.0,106080.0,0.83555911]
[1762754058300,0.16255254,106090.0,106080.0,0.83555911]
[1762754058894,0.23294224,106090.0,106080.0,0.90594881]
[1762754059094,0.31714194,106090.0,106080.0,0.90594881]
[1762754059800,0.06827374,106090.0,106080.0,0.97633851]
[1762754059992,0.13866344,106090.0,106080.0,0.90594881]
[1762754060193,0.13866344,106090.0,106080.0,0.97633851]
[1762754060402,0.11701344,106090.0,106080.0,0.90594881]
[1762754060598,0.11701344,106090.0,106080.0,0.97633851]
[1762754060994,0.02519374,106090.0,106080.0,1.07633851]
[1762754062103,0.02519374,106090.0,106080.0,0.97633851]
[1762754062400,0.14205254,106090.0,106080.0,0.97633851]
[1762754062601,0.16389254,106090.0,106080.0,0.97633851]
[1762754062993,0.23428224,106090.0,106080.0,0.97633851]
[1762754063188,0.29548623,106090.0,106080.0,0.51043911]
[1762754063399,0.29548623,106090.0,106080.0,0.40628141]
[1762754063400,0.31843389,106090.0,106080.0,0.40628141]
[1762754063703,0.31843389,106090.0,106080.0,0.82568911]
[1762754064105,0.31843389,106090.0,106080.0,0.73140141]
[1762754064397,0.31843389,106090.0,106080.0,0.40628141]
[1762754064597,0.38882359,106090.0,106080.0,0.04548141]
[1762754066801,0.38882359,106090.0,106080.0,0.50056921]
[1762754067600,0.31843389,106090.0,106080.0,0.50056921]
[1762754068393,0.31843389,106090.0,106080.0,0.04548141]
[1762754068799,0.31843389,106090.0,106080.0,0.13976921]
[1762754069503,0.31843389,106090.0,106080.0,0.50056921]
[1762754070007,0.31843389,106090.0,106080.0,0.13976921]
[1762754070206,0.31843389,106090.0,106080.0,0.04548141]
[1762754072405,0.31843389,106090.0,106080.0,0.50056911]
[1762754074406,0.31843389,106090.0,106080.0,0.57095881]
[1762754074703,0.31843389,106090.0,106080.0,0.50056911]
[1762754080205,0.06956569,106090.0,106080.0,0.65121851]
[1762754080408,0.02514569,106090.0,106080.0,0.65121851]
[1762754080605,0.06956569,106090.0,106080.0,0.65121851]
[1762754082010,0.04661803,106090.0,106080.0,0.65121851]
[1762754082703,0.00219803,106090.0,106080.0,0.65121851]
[1762754084313,0.00219803,106090.0,106080.0,0.72160821]
[1762754084712,0.00219803,106090.0,106080.0,0.65121851]
[1762754084905,0.02477803,106090.0,106080.0,0.65121851]
[1762754085915,0.11905683,106090.0,106080.0,0.65121851]
[1762754087317,0.14089683,106090.0,106080.0,0.65121851]
[1762754087517,0.04661803,106090.0,106080.0,0.65121851]
[1762754087816,0.14089683,106090.0,106080.0,0.65121851]
[1762754088021,0.00219803,106090.0,106080.0,0.65121851]
[1762754088409,0.02477803,106090.0,106080.0,0.65121851]
[1762754088619,0.00219803,106090.0,106080.0,0.65121851]
[1762754089018,0.02131,106080.0,106060.0,0.3608]
[1762754089222,0.36382373,106070.0,106060.0,0.40349]
[1762754089516,0.02510891,106070.0,106060.0,0.5076655]
[1762754089713,0.00219803,106070.0,106060.0,0.5076655]
[1762754090715,0.18979585,106070.0,106060.0,0.5830552]
[1762754091219,0.21110585,106070.0,106060.0,0.5830552]
[1762754091414,0.21145303,106070.0,106060.0,0.5790552]
[1762754091821,0.11715643,106070.0,106060.0,0.5790552]
[1762754092115,0.19014303,106070.0,106060.0,0.5790552]
[1762754093016,0.21145303,106070.0,106060.0,0.5790552]
[1762754093417,0.23348303,106070.0,106060.0,0.5790552]
[1762754094323,0.16688433,106070.0,106060.0,0.5790552]
[1762754094924,0.18819433,106070.0,106060.0,0.5790552]
[1762754095125,0.21022433,106070.0,106060.0,0.4847497]
[1762754095717,0.21022433,106070.0,106060.0,0.5790552]
[1762754096624,0.18819433,106070.0,106060.0,0.5790552]
[1762754096825,0.07258773,106070.0,106060.0,0.5790552]
[1762754097837,0.16688433,106070.0,106060.0,0.5790552]
[1762754098125,0.18819433,106070.0,106060.0,0.5790552]
[1762754098430,0.21022433,106070.0,106060.0,0.5790552]
[1762754099930,0.11592773,106070.0,106060.0,0.5790552]
[1762754100130,0.18819433,106070.0,106060.0,0.5790552]
[1762754100319,0.07258773,106070.0,106060.0,0.5790552]
[1762754100524,0.09649463,106070.0,106060.0,0.7494449]
[1762754100931,0.09649463,106070.0,106060.0,0.5790552]
[1762754101229,0.11780463,106070.0,106060.0,0.5790552]
[1762754101416,0.11780463,106070.0,106060.0,0.6494449]
[1762754101619,0.09649463,106070.0,106060.0,0.6494449]
[1762754101817,0.00219803,106070.0,106060.0,0.6494449]
[1762754102121,0.00219803,106070.0,106060.0,0.7494449]
[1762754102920,0.00014141,106080.0,106070.0,0.1498465]
[1762754103233,1e-08,106080.0,106070.0,0.9766659]
[1762754103526,1e-08,106080.0,106070.0,1.0470556]
[1762754104030,0.00100001,106080.0,106070.0,1.1470556]
[1762754104230,0.00300001,106080.0,106070.0,1.1470556]
[1762754104726,0.00200001,106080.0,106070.0,1.1470556]
[1762754104932,0.2783943,106100.0,106090.0,0.1431088]
[1762754105234,0.23358598,106100.0,106090.0,0.8995785]
[1762754105422,0.24640598,106100.0,106090.0,0.8291888]
[1762754105619,0.31679568,106100.0,106090.0,0.8230488]
[1762754106333,0.31979568,106100.0,106090.0,0.89974594]
[1762754107935,0.31979568,106100.0,106090.0,0.97013564]
[1762754108227,0.24940598,106100.0,106090.0,0.97013564]
[1762754108936,0.13174773,106100.0,106090.0,0.97013564]
[1762754109133,0.13174773,106100.0,106090.0,1.33093564]
[1762754109323,0.20213743,106100.0,106090.0,1.33707564]
[1762754109520,0.22601763,106100.0,106090.0,1.33707564]
[1762754109928,0.13174773,106100.0,106090.0,1.33707564]
[1762754110431,0.003,106100.0,106090.0,1.57785504]
[1762754110735,0.18610221,106110.0,106100.0,0.1468299]
[1762754110933,0.21033024,106110.0,106100.0,0.5780196]
[1762754111337,0.22315024,106110.0,106100.0,0.5780196]
[1762754111528,0.36392964,106110.0,106100.0,0.40349]
[1762754111735,0.36392964,106110.0,106090.0,0.43749714]
[1762754111736,0.15043,106100.0,106090.0,0.21366594]
[1762754111929,0.29340743,106100.0,106090.0,0.89970594]
[1762754112229,0.36379713,106100.0,106090.0,0.89970594]
[1762754112435,0.29340743,106100.0,106090.0,0.57446594]
[1762754112737,0.38716045,106100.0,106090.0,0.80542714]
[1762754113129,0.38816045,106100.0,106090.0,0.80542714]
[1762754113539,0.38716045,106100.0,106090.0,0.80542714]
[1762754113737,0.39216045,106100.0,106090.0,0.89970594]
[1762754114326,0.32177075,106100.0,106090.0,0.89970594]
[1762754116236,0.39216045,106100.0,106090.0,0.89970594]
[1762754116437,0.32177075,106100.0,106090.0,0.89970594]
[1762754116634,0.32177075,106100.0,106090.0,0.57446594]
[1762754116834,0.32177075,106100.0,106090.0,0.89966594]
[1762754117040,0.32177075,106100.0,106090.0,0.57446594]